[Event "*** Titled Tuesday Blitz"]
[Site "Chess.com"]
[Date "2020.12.01"]
[Round "11"]
[White "IMVoja"]
[Black "Enriquack"]
[Result "0-1"]
[WhiteElo "2396"]
[BlackElo "2300"]
[TimeControl "180+1"]
[EndTime "12:06:51 PST"]
[Termination "Enriquack won by resignation"]

1. e4 {[%clk 0:03:00.9]} 1... c5 {[%clk 0:02:58.7]} 2. Nf3 {[%clk 0:03:00.1]}
2... e6 {[%clk 0:02:58.9]} 3. d3 {[%clk 0:03:00]} 3... Nc6 {[%clk 0:02:58.8]} 4.
g3 {[%clk 0:02:59.9]} 4... Qc7 {[%clk 0:02:58.6]} 5. Bg2 {[%clk 0:02:59.7]} 5...
b6 {[%clk 0:02:58.8]} 6. O-O {[%clk 0:02:59.5]} 6... Bb7 {[%clk 0:02:59.4]} 7.
Nbd2 {[%clk 0:02:59.4]} 7... h5 {[%clk 0:02:59.1]} 8. h4 {[%clk 0:02:58.9]} 8...
Nh6 {[%clk 0:02:58]} 9. Nc4 {[%clk 0:02:56.7]} 9... Ng4 {[%clk 0:02:58.2]} 10.
Bf4 {[%clk 0:02:56.2]} 10... d6 {[%clk 0:02:58.4]} 11. a4 {[%clk 0:02:53.7]}
11... Be7 {[%clk 0:02:43.9]} 12. c3 {[%clk 0:02:53.2]} 12... Nce5 {[%clk
0:02:36.9]} 13. Ne3 {[%clk 0:02:32.9]} 13... Ng6 {[%clk 0:02:34.5]} 14. Bg5
{[%clk 0:02:21.6]} 14... f6 {[%clk 0:02:34.1]} 15. Bf4 {[%clk 0:02:13.5]} 15...
Nxf4 {[%clk 0:02:34.2]} 16. gxf4 {[%clk 0:02:13.9]} 16... d5 {[%clk 0:02:30.4]}
17. e5 {[%clk 0:02:12.3]} 17... fxe5 {[%clk 0:02:29.4]} 18. fxe5 {[%clk
0:02:11.8]} 18... Nxe5 {[%clk 0:02:27.7]} 19. Re1 {[%clk 0:02:04.3]} 19... Ng4
{[%clk 0:02:25.6]} 20. Nf1 {[%clk 0:01:59.2]} 20... O-O {[%clk 0:01:27.6]} 21.
Rxe6 {[%clk 0:01:51.4]} 21... d4 {[%clk 0:01:20.6]} 22. Qe2 {[%clk 0:01:40.4]}
22... Bxh4 {[%clk 0:01:16.6]} 23. Nxh4 {[%clk 0:01:27.6]} 23... Rxf2 {[%clk
0:01:16.3]} 24. Re8+ {[%clk 0:01:25.2]} 24... Kh7 {[%clk 0:00:48.3]} 25. Be4+
{[%clk 0:01:24]} 25... Kh6 {[%clk 0:00:48.2]} 26. Nf5+ {[%clk 0:01:01]} 26...
Kg5 {[%clk 0:00:47.6]} 27. Qxg4+ {[%clk 0:00:59.6]} 27... hxg4 {[%clk
0:00:47.6]} 28. Rxa8 {[%clk 0:00:53.1]} 28... Rxf5 {[%clk 0:00:29.3]} 29. Rxa7
{[%clk 0:00:45.3]} 29... Rxf1+ {[%clk 0:00:24]} 30. Kxf1 {[%clk 0:00:40.8]}
30... Qf4+ {[%clk 0:00:24]} 31. Ke2 {[%clk 0:00:36.9]} 31... Bxe4 {[%clk
0:00:24.1]} 32. dxe4 {[%clk 0:00:37.3]} 32... Qxe4+ {[%clk 0:00:24.3]} 33. Kd2
{[%clk 0:00:37.7]} 33... Qe3+ {[%clk 0:00:20.5]} 34. Kc2 {[%clk 0:00:37.1]}
34... d3+ {[%clk 0:00:20.9]} 35. Kb3 {[%clk 0:00:36.1]} 35... Qe6+ {[%clk
0:00:18.9]} 36. c4 {[%clk 0:00:35.5]} 36... Qf6 {[%clk 0:00:18.6]} 37. Rd7
{[%clk 0:00:30.2]} 37... Qf3 {[%clk 0:00:14.8]} 38. Kc3 {[%clk 0:00:27.5]} 38...
d2+ {[%clk 0:00:08.1]} 39. Kc2 {[%clk 0:00:20.4]} 39... g3 {[%clk 0:00:06.4]}
40. Rd1 {[%clk 0:00:17.2]} 40... g2 {[%clk 0:00:04.3]} 41. R7xd2 {[%clk
0:00:15.9]} 41... Qe4+ {[%clk 0:00:03.6]} 42. Kc1 {[%clk 0:00:13.9]} 42... Kh4
{[%clk 0:00:04]} 43. Rd3 {[%clk 0:00:11.8]} 43... g5 {[%clk 0:00:02.5]} 44. R1d2
{[%clk 0:00:10.7]} 44... g4 {[%clk 0:00:02.5]} 45. Rd1 {[%clk 0:00:10.7]} 45...
g3 {[%clk 0:00:02.6]} 46. Kc2 {[%clk 0:00:11.6]} 46... Qxc4+ {[%clk 0:00:02.7]}
47. Kd2 {[%clk 0:00:11.8]} 47... Qe4 {[%clk 0:00:03.6]} 48. Kc3 {[%clk 0:00:12]}
48... Qe2 {[%clk 0:00:03.6]} 49. R3d2 {[%clk 0:00:11.6]} 49... Qe3+ {[%clk
0:00:03.1]} 50. Rd3 {[%clk 0:00:11.2]} 50... g1=Q {[%clk 0:00:03.4]} 51. Rxe3
{[%clk 0:00:09.9]} 51... Qxe3+ {[%clk 0:00:03.5]} 52. Rd3 {[%clk 0:00:10.8]}
52... Qxd3+ {[%clk 0:00:03.6]} 53. Kxd3 {[%clk 0:00:10.4]} 53... g2 {[%clk
0:00:04.5]} 54. Kc4 {[%clk 0:00:11.1]} 54... g1=Q {[%clk 0:00:05.1]} 55. Kb5
{[%clk 0:00:12]} 55... Qd4 {[%clk 0:00:05.7]} 56. Kxb6 {[%clk 0:00:12.7]} 56...
Qb4+ {[%clk 0:00:06.2]} 57. Kc6 {[%clk 0:00:12.5]} 57... c4 {[%clk 0:00:07.1]}
58. Kd5 {[%clk 0:00:12.5]} 58... Qxb2 {[%clk 0:00:07]} 59. Kxc4 {[%clk
0:00:12.5]} 59... Qb8 {[%clk 0:00:07.9]} 60. a5 {[%clk 0:00:12.7]} 60... Qa8
{[%clk 0:00:08.8]} 61. Kb5 {[%clk 0:00:13.1]} 61... Kg4 {[%clk 0:00:09.7]} 62.
Kb6 {[%clk 0:00:13.7]} 62... Kf5 {[%clk 0:00:10.6]} 63. a6 {[%clk 0:00:14.6]}
63... Ke6 {[%clk 0:00:11.5]} 64. a7 {[%clk 0:00:15.3]} 64... Kd5 {[%clk
0:00:12.4]} 65. Ka6 {[%clk 0:00:16.1]} 65... Kd6 {[%clk 0:00:12.8]} 66. Ka5
{[%clk 0:00:16.6]} 66... Kd7 {[%clk 0:00:13.2]} 67. Kb6 {[%clk 0:00:17.5]} 67...
Kc8 {[%clk 0:00:13.8]} 68. Ka6 {[%clk 0:00:17.6]} 68... Kc7 {[%clk 0:00:14.3]}
69. Ka5 {[%clk 0:00:18.1]} 69... Qxa7+ {[%clk 0:00:14.9]} 70. Kb5 {[%clk
0:00:19]} 70... Qb6+ {[%clk 0:00:15.2]} 71. Kc4 {[%clk 0:00:19.8]} 71... Kd6
{[%clk 0:00:15.4]} 72. Kd3 {[%clk 0:00:19.4]} 72... Qc5 {[%clk 0:00:15.5]} 73.
Ke4 {[%clk 0:00:19.8]} 73... Qd5+ {[%clk 0:00:15.3]} 74. Ke3 {[%clk 0:00:19.3]}
74... Ke5 {[%clk 0:00:15.8]} 0-1

[Event "*** Titled Tuesday Blitz"]
[Site "Chess.com"]
[Date "2020.12.01"]
[Round "11"]
[White "VladaSviridova"]
[Black "dopolian"]
[Result "1-0"]
[WhiteElo "2331"]
[BlackElo "2420"]
[TimeControl "180+1"]
[EndTime "12:06:57 PST"]
[Termination "VladaSviridova won on time"]

1. d4 {[%clk 0:03:00.9]} 1... Nf6 {[%clk 0:03:00.1]} 2. c4 {[%clk 0:03:00.8]}
2... c5 {[%clk 0:03:00.2]} 3. d5 {[%clk 0:03:00.7]} 3... e6 {[%clk 0:03:00.2]}
4. Nc3 {[%clk 0:03:00.6]} 4... exd5 {[%clk 0:02:59.7]} 5. cxd5 {[%clk 0:03:01]}
5... d6 {[%clk 0:02:59.8]} 6. e4 {[%clk 0:03:01.4]} 6... g6 {[%clk 0:03:00]} 7.
Bd3 {[%clk 0:03:01.7]} 7... Bg7 {[%clk 0:02:56.2]} 8. h3 {[%clk 0:03:02]} 8...
O-O {[%clk 0:02:55.1]} 9. Nf3 {[%clk 0:03:02.2]} 9... Bd7 {[%clk 0:02:55]} 10.
a4 {[%clk 0:02:58.1]} 10... Na6 {[%clk 0:02:54.1]} 11. O-O {[%clk 0:02:57.5]}
11... Nb4 {[%clk 0:02:54.1]} 12. Bc4 {[%clk 0:02:47.9]} 12... Re8 {[%clk
0:02:44.8]} 13. Re1 {[%clk 0:02:47.1]} 13... a6 {[%clk 0:02:35]} 14. Bf4 {[%clk
0:02:09.4]} 14... b5 {[%clk 0:02:07.4]} 15. axb5 {[%clk 0:02:09.1]} 15... axb5
{[%clk 0:02:08.3]} 16. Rxa8 {[%clk 0:02:06.2]} 16... Qxa8 {[%clk 0:02:09.2]} 17.
Nxb5 {[%clk 0:01:26.4]} 17... Bxb5 {[%clk 0:01:58.4]} 18. Bxb5 {[%clk
0:01:26.1]} 18... Rxe4 {[%clk 0:01:58.7]} 19. Bxd6 {[%clk 0:01:20.8]} 19...
Rxe1+ {[%clk 0:01:46.3]} 20. Nxe1 {[%clk 0:01:18]} 20... Qxd5 {[%clk 0:01:35.9]}
21. Qxd5 {[%clk 0:01:17.1]} 21... Nfxd5 {[%clk 0:01:36.3]} 22. Bxc5 {[%clk
0:01:08.9]} 22... Bxb2 {[%clk 0:01:35.8]} 23. Nd3 {[%clk 0:01:05.1]} 23... Nxd3
{[%clk 0:01:30.9]} 24. Bxd3 {[%clk 0:01:04.8]} 24... Kg7 {[%clk 0:01:27.5]} 25.
Bc4 {[%clk 0:01:02]} 25... Nf6 {[%clk 0:01:21.6]} 26. g4 {[%clk 0:00:59.4]}
26... h5 {[%clk 0:01:21.1]} 27. g5 {[%clk 0:00:56.4]} 27... Ne4 {[%clk
0:01:17.1]} 28. Be3 {[%clk 0:00:56.4]} 28... Bc3 {[%clk 0:01:06.2]} 29. Bd3
{[%clk 0:00:55.9]} 29... Nd6 {[%clk 0:01:02.8]} 30. Kg2 {[%clk 0:00:53.8]} 30...
Kf8 {[%clk 0:00:51.4]} 31. h4 {[%clk 0:00:51.9]} 31... Ke7 {[%clk 0:00:51.5]}
32. f4 {[%clk 0:00:51.4]} 32... Ke6 {[%clk 0:00:50.8]} 33. Bf2 {[%clk
0:00:44.3]} 33... Bd2 {[%clk 0:00:40.1]} 34. Kf3 {[%clk 0:00:43.9]} 34... Bc1
{[%clk 0:00:32.8]} 35. Bc2 {[%clk 0:00:40.4]} 35... Nf5 {[%clk 0:00:30.9]} 36.
Bb3+ {[%clk 0:00:39.3]} 36... Ke7 {[%clk 0:00:31.2]} 37. Bc2 {[%clk 0:00:36.4]}
37... Ng7 {[%clk 0:00:21.5]} 38. Bb3 {[%clk 0:00:34.4]} 38... Ne6 {[%clk
0:00:15.8]} 39. Be3 {[%clk 0:00:28.2]} 39... Bxe3 {[%clk 0:00:12.3]} 40. Kxe3
{[%clk 0:00:28.2]} 40... Ng7 {[%clk 0:00:12.9]} 41. Bc2 {[%clk 0:00:26.4]} 41...
Ke6 {[%clk 0:00:11.3]} 42. Kf2 {[%clk 0:00:20.6]} 42... Ne8 {[%clk 0:00:06.7]}
43. Ke3 {[%clk 0:00:20.5]} 43... Nd6 {[%clk 0:00:06.8]} 44. Bb3+ {[%clk
0:00:20.4]} 44... Kf5 {[%clk 0:00:07]} 45. Kf3 {[%clk 0:00:19]} 45... f6 {[%clk
0:00:04.2]} 46. Bc2+ {[%clk 0:00:17.2]} 46... Ke6 {[%clk 0:00:03.9]} 47. Bb3+
{[%clk 0:00:17.4]} 47... Ke7 {[%clk 0:00:02.2]} 48. gxf6+ {[%clk 0:00:14.8]}
48... Kxf6 {[%clk 0:00:03.1]} 49. Bc2 {[%clk 0:00:14]} 49... Nf5 {[%clk
0:00:03.6]} 50. Be4 {[%clk 0:00:09.6]} 50... Nxh4+ {[%clk 0:00:03.7]} 51. Kg3
{[%clk 0:00:09.9]} 51... Nf5+ {[%clk 0:00:04.3]} 52. Kf3 {[%clk 0:00:10.2]}
52... Ng7 {[%clk 0:00:04.5]} 53. Kg3 {[%clk 0:00:09.8]} 53... Ne6 {[%clk
0:00:04.9]} 54. Kf3 {[%clk 0:00:09.3]} 54... Nd4+ {[%clk 0:00:02.9]} 55. Ke3
{[%clk 0:00:08.4]} 55... Nf5+ {[%clk 0:00:03.8]} 56. Kf3 {[%clk 0:00:08.6]}
56... Ke6 {[%clk 0:00:03.9]} 57. Bb1 {[%clk 0:00:07]} 57... Kd5 {[%clk
0:00:03.3]} 58. Ba2+ {[%clk 0:00:06]} 58... Kd4 {[%clk 0:00:03.7]} 59. Bf7
{[%clk 0:00:05.4]} 59... Ne7 {[%clk 0:00:03.9]} 60. Be8 {[%clk 0:00:03.9]} 60...
Kd5 {[%clk 0:00:02.3]} 61. Bf7+ {[%clk 0:00:03.8]} 61... Kd6 {[%clk 0:00:01.9]}
62. Ke4 {[%clk 0:00:03.8]} 62... h4 {[%clk 0:00:01.7]} 63. Kf3 {[%clk
0:00:03.6]} 1-0

[Event "*** Titled Tuesday Blitz"]
[Site "Chess.com"]
[Date "2020.12.01"]
[Round "11"]
[White "DenLaz"]
[Black "Jospem"]
[Result "1-0"]
[WhiteElo "2816"]
[BlackElo "2949"]
[TimeControl "180+1"]
[EndTime "12:07:01 PST"]
[Termination "DenLaz won by checkmate"]

1. d4 {[%clk 0:03:00.9]} 1... Nf6 {[%clk 0:02:59.9]} 2. c4 {[%clk 0:03:00.6]}
2... e6 {[%clk 0:03:00.8]} 3. Nf3 {[%clk 0:02:59.8]} 3... Bb4+ {[%clk
0:03:01.4]} 4. Bd2 {[%clk 0:02:59.5]} 4... Qe7 {[%clk 0:03:01.8]} 5. g3 {[%clk
0:02:58.2]} 5... Bxd2+ {[%clk 0:03:00.7]} 6. Qxd2 {[%clk 0:02:56.2]} 6... O-O
{[%clk 0:03:00.9]} 7. Nc3 {[%clk 0:02:54.7]} 7... d6 {[%clk 0:03:01.1]} 8. Bg2
{[%clk 0:02:53]} 8... c6 {[%clk 0:02:59.4]} 9. O-O {[%clk 0:02:51]} 9... e5
{[%clk 0:02:59.7]} 10. e4 {[%clk 0:02:51.2]} 10... Bg4 {[%clk 0:02:58.8]} 11.
Ne1 {[%clk 0:02:48.4]} 11... a5 {[%clk 0:02:39.8]} 12. Nc2 {[%clk 0:02:46.9]}
12... Na6 {[%clk 0:02:34]} 13. h3 {[%clk 0:02:41.6]} 13... Be6 {[%clk 0:02:34]}
14. Ne3 {[%clk 0:02:40.7]} 14... Qc7 {[%clk 0:02:34.2]} 15. f4 {[%clk
0:02:32.8]} 15... Rad8 {[%clk 0:02:29.1]} 16. Rad1 {[%clk 0:02:28]} 16... Rfe8
{[%clk 0:02:18]} 17. Qf2 {[%clk 0:02:15]} 17... exd4 {[%clk 0:02:01.6]} 18. Rxd4
{[%clk 0:02:15.9]} 18... Nc5 {[%clk 0:02:02.1]} 19. g4 {[%clk 0:02:08.6]} 19...
Bc8 {[%clk 0:01:58.2]} 20. g5 {[%clk 0:02:06.2]} 20... Nfd7 {[%clk 0:01:50.3]}
21. Rfd1 {[%clk 0:02:04.1]} 21... Nf8 {[%clk 0:01:48.6]} 22. f5 {[%clk
0:01:59.1]} 22... Nfd7 {[%clk 0:01:26.5]} 23. Rxd6 {[%clk 0:01:43.1]} 23... Ne5
{[%clk 0:01:26.5]} 24. Rxd8 {[%clk 0:01:25.9]} 24... Rxd8 {[%clk 0:01:26.8]} 25.
h4 {[%clk 0:01:11.6]} 25... Ned3 {[%clk 0:01:13.1]} 26. Qe2 {[%clk 0:01:03.8]}
26... Qf4 {[%clk 0:01:08.4]} 27. Ng4 {[%clk 0:00:59]} 27... Re8 {[%clk
0:00:53.7]} 28. Rf1 {[%clk 0:00:55.2]} 28... Qg3 {[%clk 0:00:54.1]} 29. Nf2
{[%clk 0:00:32.6]} 29... Ne5 {[%clk 0:00:29.1]} 30. Rd1 {[%clk 0:00:30.3]} 30...
Qxh4 {[%clk 0:00:26.1]} 31. Qe3 {[%clk 0:00:30.6]} 31... b6 {[%clk 0:00:20.8]}
32. b3 {[%clk 0:00:27.8]} 32... h6 {[%clk 0:00:19.9]} 33. gxh6 {[%clk
0:00:26.4]} 33... gxh6 {[%clk 0:00:18.7]} 34. Ne2 {[%clk 0:00:19.6]} 34... Kh7
{[%clk 0:00:15.5]} 35. Qf4 {[%clk 0:00:19.9]} 35... Qg5 {[%clk 0:00:13.3]} 36.
Nh3 {[%clk 0:00:15.2]} 36... Qg4 {[%clk 0:00:09]} 37. Qxg4 {[%clk 0:00:14]}
37... Nxg4 {[%clk 0:00:09.9]} 38. Ng3 {[%clk 0:00:13.8]} 38... Nf6 {[%clk
0:00:05.1]} 39. Nf2 {[%clk 0:00:13.4]} 39... Ncd7 {[%clk 0:00:04.7]} 40. Rd6
{[%clk 0:00:13.3]} 40... c5 {[%clk 0:00:05.1]} 41. Nd3 {[%clk 0:00:08.5]} 41...
Kg7 {[%clk 0:00:05.6]} 42. Nf4 {[%clk 0:00:07.8]} 42... Kf8 {[%clk 0:00:06.2]}
43. Nd5 {[%clk 0:00:07.3]} 43... Nxd5 {[%clk 0:00:04.6]} 44. cxd5 {[%clk
0:00:07.3]} 44... Ke7 {[%clk 0:00:02.8]} 45. Rxh6 {[%clk 0:00:07.1]} 45... f6
{[%clk 0:00:03.6]} 46. Ne2 {[%clk 0:00:06.3]} 46... Rg8 {[%clk 0:00:03.3]} 47.
Nf4 {[%clk 0:00:06.6]} 47... Ne5 {[%clk 0:00:03.9]} 48. Kf1 {[%clk 0:00:06]}
48... Ba6+ {[%clk 0:00:03.8]} 49. Ke1 {[%clk 0:00:04.9]} 49... Nd3+ {[%clk
0:00:02.5]} 50. Nxd3 {[%clk 0:00:05.2]} 50... Bxd3 {[%clk 0:00:03.4]} 51. Bf3
{[%clk 0:00:05.8]} 51... Rg1+ {[%clk 0:00:02.4]} 52. Kf2 {[%clk 0:00:06.3]}
52... Ra1 {[%clk 0:00:03]} 53. Rh7+ {[%clk 0:00:06.8]} 53... Kd6 {[%clk
0:00:03]} 54. Rf7 {[%clk 0:00:06.6]} 54... Ke5 {[%clk 0:00:03.6]} 55. Ke3 {[%clk
0:00:05.3]} 55... Bb5 {[%clk 0:00:02.3]} 56. Re7+ {[%clk 0:00:05.6]} 56... Kd6
{[%clk 0:00:03]} 57. Re6+ {[%clk 0:00:06.3]} 57... Kc7 {[%clk 0:00:03.9]} 58.
Rxf6 {[%clk 0:00:06.3]} 58... Rxa2 {[%clk 0:00:04.5]} 59. d6+ {[%clk 0:00:06.7]}
59... Kb8 {[%clk 0:00:03.5]} 60. e5 {[%clk 0:00:06.7]} 60... c4 {[%clk
0:00:03.8]} 61. e6 {[%clk 0:00:05.2]} 61... c3 {[%clk 0:00:03.2]} 62. Rf8+
{[%clk 0:00:05.1]} 62... Ka7 {[%clk 0:00:02.9]} 63. Ra8# {[%clk 0:00:05.2]} 1-0

[Event "*** Titled Tuesday Blitz"]
[Site "Chess.com"]
[Date "2020.12.01"]
[Round "11"]
[White "PotapovaM"]
[Black "vladimirdamjanovic"]
[Result "1-0"]
[WhiteElo "2586"]
[BlackElo "2448"]
[TimeControl "180+1"]
[EndTime "12:07:05 PST"]
[Termination "PotapovaM won by resignation"]

1. d4 {[%clk 0:02:53.9]} 1... Nf6 {[%clk 0:02:58.8]} 2. c4 {[%clk 0:02:49.6]}
2... c5 {[%clk 0:02:58.8]} 3. d5 {[%clk 0:02:49.2]} 3... b5 {[%clk 0:02:59]} 4.
cxb5 {[%clk 0:02:49.4]} 4... a6 {[%clk 0:02:59.4]} 5. bxa6 {[%clk 0:02:49.6]}
5... Bxa6 {[%clk 0:02:59.8]} 6. Nc3 {[%clk 0:02:47.3]} 6... d6 {[%clk 0:03:00]}
7. e4 {[%clk 0:02:47.2]} 7... Bxf1 {[%clk 0:03:00.5]} 8. Kxf1 {[%clk 0:02:48.1]}
8... g6 {[%clk 0:03:01]} 9. Nf3 {[%clk 0:02:48.4]} 9... Nbd7 {[%clk 0:02:59.9]}
10. g3 {[%clk 0:02:48.4]} 10... Bg7 {[%clk 0:03:00.3]} 11. Kg2 {[%clk
0:02:48.7]} 11... O-O {[%clk 0:03:00.9]} 12. a4 {[%clk 0:02:49]} 12... Ng4
{[%clk 0:03:00.3]} 13. Qe2 {[%clk 0:02:47.4]} 13... Nge5 {[%clk 0:03:00.2]} 14.
Nd2 {[%clk 0:02:44.7]} 14... Nb8 {[%clk 0:02:46.6]} 15. f4 {[%clk 0:02:32.9]}
15... Ned7 {[%clk 0:02:46.7]} 16. Nc4 {[%clk 0:02:32.9]} 16... Nb6 {[%clk
0:02:45.1]} 17. Bd2 {[%clk 0:02:27.5]} 17... Nxc4 {[%clk 0:02:43.2]} 18. Qxc4
{[%clk 0:02:28.4]} 18... Nd7 {[%clk 0:02:43.5]} 19. b3 {[%clk 0:02:20.8]} 19...
Nb6 {[%clk 0:02:31.9]} 20. Qe2 {[%clk 0:02:04.5]} 20... Nd7 {[%clk 0:02:11.1]}
21. Ra2 {[%clk 0:01:56]} 21... Rb8 {[%clk 0:02:01]} 22. Nb5 {[%clk 0:01:55.8]}
22... Nb6 {[%clk 0:01:54.4]} 23. Qd3 {[%clk 0:01:48.2]} 23... f5 {[%clk
0:01:49.1]} 24. Na7 {[%clk 0:01:19.6]} 24... Qd7 {[%clk 0:01:31.1]} 25. Nc6
{[%clk 0:01:17.2]} 25... Rbe8 {[%clk 0:01:30.8]} 26. a5 {[%clk 0:01:12.2]} 26...
Na8 {[%clk 0:01:30.8]} 27. Re1 {[%clk 0:00:44.2]} 27... e6 {[%clk 0:01:14.9]}
28. exf5 {[%clk 0:00:19.6]} 28... gxf5 {[%clk 0:01:15.2]} 29. b4 {[%clk
0:00:15.8]} 29... cxb4 {[%clk 0:01:04.6]} 30. Bxb4 {[%clk 0:00:16.7]} 30... Nc7
{[%clk 0:00:57.9]} 31. Nd4 {[%clk 0:00:10]} 31... Nxd5 {[%clk 0:00:56]} 32. Bd2
{[%clk 0:00:10.6]} 32... e5 {[%clk 0:00:43.5]} 33. Nxf5 {[%clk 0:00:08.2]} 33...
Nxf4+ {[%clk 0:00:43.6]} 34. Bxf4 {[%clk 0:00:06.5]} 34... Rxf5 {[%clk
0:00:43.6]} 35. Be3 {[%clk 0:00:05.2]} 35... e4 {[%clk 0:00:43.4]} 36. Qc4+
{[%clk 0:00:04.9]} 36... d5 {[%clk 0:00:42.9]} 37. Qb3 {[%clk 0:00:05]} 37...
Kh8 {[%clk 0:00:39.7]} 38. a6 {[%clk 0:00:05]} 38... d4 {[%clk 0:00:39.8]} 39.
Bf4 {[%clk 0:00:05.3]} 39... e3 {[%clk 0:00:38.2]} 40. Qb7 {[%clk 0:00:05.1]}
40... Qe6 {[%clk 0:00:33.3]} 41. Rc2 {[%clk 0:00:03.3]} 41... d3 {[%clk
0:00:31.6]} 42. Rxe3 {[%clk 0:00:02.8]} 42... Be5 {[%clk 0:00:15.7]} 43. Bxe5+
{[%clk 0:00:02.7]} 43... Rxe5 {[%clk 0:00:16.1]} 44. Rxe5 {[%clk 0:00:01.7]}
44... Qxe5 {[%clk 0:00:16.1]} 45. Rd2 {[%clk 0:00:02.3]} 45... Qe3 {[%clk
0:00:14.4]} 46. Qb2+ {[%clk 0:00:02.5]} 46... Kg8 {[%clk 0:00:13.8]} 47. Qb3+
{[%clk 0:00:03.1]} 47... Kg7 {[%clk 0:00:13]} 48. Qxd3 {[%clk 0:00:02.6]} 48...
Qa7 {[%clk 0:00:09.2]} 49. Qd7+ {[%clk 0:00:02.6]} 49... Qxd7 {[%clk 0:00:09.5]}
50. Rxd7+ {[%clk 0:00:03.5]} 50... Kf6 {[%clk 0:00:10.1]} 51. a7 {[%clk
0:00:04]} 51... Ra8 {[%clk 0:00:09.8]} 52. Rxh7 {[%clk 0:00:04.3]} 52... Kg6
{[%clk 0:00:10.2]} 53. Rb7 {[%clk 0:00:04.2]} 53... Kf6 {[%clk 0:00:10.3]} 54.
h4 {[%clk 0:00:04.6]} 54... Kg6 {[%clk 0:00:10.6]} 55. g4 {[%clk 0:00:04.8]}
55... Kh6 {[%clk 0:00:10.2]} 56. Kg3 {[%clk 0:00:05.2]} 56... Kg6 {[%clk
0:00:10.5]} 57. h5+ {[%clk 0:00:05.3]} 57... Kh6 {[%clk 0:00:10.9]} 58. Rb6+
{[%clk 0:00:05.2]} 58... Kg7 {[%clk 0:00:11]} 59. Ra6 {[%clk 0:00:05.5]} 59...
Kh7 {[%clk 0:00:10.6]} 60. g5 {[%clk 0:00:05.9]} 60... Kg7 {[%clk 0:00:11]} 61.
Kg4 {[%clk 0:00:06.4]} 61... Kh7 {[%clk 0:00:11.4]} 62. h6 {[%clk 0:00:05.1]}
62... Kg8 {[%clk 0:00:09.2]} 63. g6 {[%clk 0:00:05.3]} 63... Kh8 {[%clk
0:00:09.1]} 64. Kg5 {[%clk 0:00:05.5]} 64... Kg8 {[%clk 0:00:09.2]} 65. Rb6
{[%clk 0:00:06]} 1-0

[Event "*** Titled Tuesday Blitz"]
[Site "Chess.com"]
[Date "2020.12.01"]
[Round "11"]
[White "Parhamov"]
[Black "TigrVShlyape"]
[Result "0-1"]
[WhiteElo "2911"]
[BlackElo "2877"]
[TimeControl "180+1"]
[EndTime "12:07:07 PST"]
[Termination "TigrVShlyape won by resignation"]

1. e4 {[%clk 0:03:00.9]} 1... e5 {[%clk 0:02:56.4]} 2. Nf3 {[%clk 0:03:00.5]}
2... Nc6 {[%clk 0:02:56.5]} 3. Bb5 {[%clk 0:03:00.6]} 3... a6 {[%clk 0:02:55.3]}
4. Ba4 {[%clk 0:03:00.5]} 4... Nf6 {[%clk 0:02:55.6]} 5. O-O {[%clk 0:03:01.2]}
5... Be7 {[%clk 0:02:55.8]} 6. Re1 {[%clk 0:03:00.9]} 6... b5 {[%clk 0:02:55.8]}
7. Bb3 {[%clk 0:03:01.4]} 7... d6 {[%clk 0:02:56.3]} 8. c3 {[%clk 0:03:01.1]}
8... O-O {[%clk 0:02:56.1]} 9. h3 {[%clk 0:03:01.2]} 9... Nb8 {[%clk 0:02:56.2]}
10. d4 {[%clk 0:03:01.1]} 10... Nbd7 {[%clk 0:02:56.7]} 11. Nbd2 {[%clk
0:03:01.5]} 11... Bb7 {[%clk 0:02:57.2]} 12. Bc2 {[%clk 0:03:00]} 12... Re8
{[%clk 0:02:57.5]} 13. Nf1 {[%clk 0:03:00.3]} 13... Bf8 {[%clk 0:02:58.1]} 14.
Ng3 {[%clk 0:03:00.7]} 14... g6 {[%clk 0:02:58.7]} 15. a3 {[%clk 0:02:57.9]}
15... c5 {[%clk 0:02:53.4]} 16. d5 {[%clk 0:02:50.1]} 16... c4 {[%clk
0:02:52.8]} 17. Be3 {[%clk 0:02:49.6]} 17... Nc5 {[%clk 0:02:30.5]} 18. Nh2
{[%clk 0:02:36]} 18... Bc8 {[%clk 0:02:27.9]} 19. Qf3 {[%clk 0:02:23]} 19... Bg7
{[%clk 0:02:20.4]} 20. Ngf1 {[%clk 0:02:21.4]} 20... Rf8 {[%clk 0:01:49]} 21. g4
{[%clk 0:02:18.1]} 21... Nfd7 {[%clk 0:01:42.1]} 22. Ng3 {[%clk 0:02:16.8]}
22... Bf6 {[%clk 0:01:40.2]} 23. Qg2 {[%clk 0:02:11.3]} 23... Bg5 {[%clk
0:01:39.1]} 24. Nf3 {[%clk 0:02:10.1]} 24... Bxe3 {[%clk 0:01:38.7]} 25. Rxe3
{[%clk 0:02:10.4]} 25... f6 {[%clk 0:01:31.5]} 26. Kh2 {[%clk 0:02:01.1]} 26...
Nb6 {[%clk 0:01:28]} 27. Rg1 {[%clk 0:01:56.8]} 27... Ra7 {[%clk 0:01:28.2]} 28.
Qf1 {[%clk 0:01:53.2]} 28... Rg7 {[%clk 0:01:26.4]} 29. Qc1 {[%clk 0:01:52.4]}
29... a5 {[%clk 0:01:24.4]} 30. Ree1 {[%clk 0:01:52.4]} 30... Kh8 {[%clk
0:01:23.2]} 31. Rg2 {[%clk 0:01:52.6]} 31... Bd7 {[%clk 0:01:21.8]} 32. Reg1
{[%clk 0:01:52.4]} 32... Qe7 {[%clk 0:01:20.3]} 33. Nh4 {[%clk 0:01:38.8]} 33...
f5 {[%clk 0:01:01.4]} 34. Qh6 {[%clk 0:01:35.1]} 34... f4 {[%clk 0:00:58.9]} 35.
Ngf5 {[%clk 0:01:34.6]} 35... gxf5 {[%clk 0:00:38.8]} 36. gxf5 {[%clk
0:01:34.6]} 36... Rxg2+ {[%clk 0:00:38.4]} 37. Rxg2 {[%clk 0:01:33.9]} 37... Be8
{[%clk 0:00:38]} 38. Rg6 {[%clk 0:01:23]} 38... Nbd7 {[%clk 0:00:34.9]} 39. Rxd6
{[%clk 0:01:08.4]} 39... Rf6 {[%clk 0:00:32.4]} 40. Rxf6 {[%clk 0:00:50.5]}
40... Qxf6 {[%clk 0:00:32.4]} 41. Qxf6+ {[%clk 0:00:39.4]} 41... Nxf6 {[%clk
0:00:31.6]} 42. f3 {[%clk 0:00:37.5]} 42... Bh5 {[%clk 0:00:30]} 43. Kg2 {[%clk
0:00:37.1]} 43... Kg7 {[%clk 0:00:29.4]} 44. Kf2 {[%clk 0:00:37.3]} 44... Kf8
{[%clk 0:00:29.9]} 45. Ng2 {[%clk 0:00:37.7]} 45... Ke7 {[%clk 0:00:30.2]} 46.
Ne1 {[%clk 0:00:36.8]} 46... Kd6 {[%clk 0:00:30.5]} 47. Ng2 {[%clk 0:00:34.3]}
47... Be8 {[%clk 0:00:29.5]} 48. Ke2 {[%clk 0:00:32.2]} 48... Nb7 {[%clk
0:00:29.2]} 49. Ne1 {[%clk 0:00:30.2]} 49... Kc5 {[%clk 0:00:29]} 50. b4+ {[%clk
0:00:29.1]} 50... cxb3 {[%clk 0:00:27.2]} 51. Bxb3 {[%clk 0:00:28.8]} 51... Kd6
{[%clk 0:00:27.1]} 52. Kf2 {[%clk 0:00:25]} 52... Nc5 {[%clk 0:00:26.8]} 53. Bd1
{[%clk 0:00:24.8]} 53... Nfd7 {[%clk 0:00:26.6]} 54. Ke2 {[%clk 0:00:20.5]}
54... Nb6 {[%clk 0:00:26.7]} 55. Kf2 {[%clk 0:00:18.5]} 55... Nc4 {[%clk
0:00:26.7]} 56. Nc2 {[%clk 0:00:18.7]} 56... Nd3+ {[%clk 0:00:25.8]} 57. Kf1
{[%clk 0:00:18.5]} 57... Bh5 {[%clk 0:00:24]} 58. Be2 {[%clk 0:00:18.7]} 58...
Ndb2 {[%clk 0:00:19.6]} 59. Kf2 {[%clk 0:00:14.7]} 59... Na4 {[%clk 0:00:19.7]}
60. Ne1 {[%clk 0:00:11.5]} 60... Nxc3 {[%clk 0:00:19.5]} 61. Nd3 {[%clk
0:00:10]} 61... Nd2 {[%clk 0:00:17.2]} 62. f6 {[%clk 0:00:08.2]} 62... Nxe2
{[%clk 0:00:16.5]} 63. Kxe2 {[%clk 0:00:08.4]} 63... Nxe4 {[%clk 0:00:16.5]} 64.
f7 {[%clk 0:00:07.9]} 64... Ng3+ {[%clk 0:00:16.6]} 0-1